[Event "87th Spanish Championship 2022"]
[Site "Linares"]
[Date "2022.08.12"]
[Round "2.12"]
[White "Cesar Maestre, Bernardo"]
[Black "Plazuelo Pascual, Juan"]
[Result "1/2-1/2"]
[ECO "B90"]
[WhiteElo "2343"]
[BlackElo "2448"]
[Annotator "TA"]
[PlyCount "67"]
[EventDate "2022.08.11"]
[EventType "swiss"]
[EventCountry "ESP"]
[SourceTitle "playchess.com"]
[Source "ChessBase"]
[SourceQuality "1"]
[TimeControl "5400+30"]

{[%evp 13,67,16,33,0,0,0,22,17,11,10,17,19,52,59,49,51,51,52,63,-22,-6,-27,25,41,38,18,41,19,38,8,24,18,10,0,45,24,116,91,171,132,137,47,33,13,94,85,83,63,54,52,80,66,103,20,32,6]} 1. e4 {[%emt 0:00:04]} c5 {[%emt 0:00:06]} 2. Nf3 {[%emt 0:00:12]} d6 {[%emt 0:00:03]} 3. d4 {[%emt 0:00:06]} cxd4 {[%emt 0:00:05]} 4. Nxd4 {[%emt 0:00:04]} Nf6 {[%emt 0:00:03]} 5. Nc3 {[%emt 0:00:06]} a6 {[%emt 0:00:04]} 6. Be3 {[%emt 0:00:11]} e5 {[%emt 0:01:01]} 7. Nb3 {[%emt 0:00:06]} Be7 {[%emt 0:00:17]} 8. Qd2 {[%emt 0:00:37] B90: Sicilian Najdorf: Unusual White 6th moves, 6 Be3 Ng4 and 6 Be3 e5.} Ng4 {[%emt 0:04:13]} 9. g3 {[%emt 0:02:03]} Be6 {[%emt 0:04:59] 9...0-0 is the modern continuation.} 10. O-O-O {[%emt 0:00:15] The position is equal.} Nd7 {[%emt 0:08:18]} 11. f4 {[%emt 0:00:45][%cal Bf2f4,Bf4f5][%mdl 32]} Nxe3 {[%emt 0:01:13]} 12. Qxe3 {[%emt 0:00:09]} Rc8 {[%emt 0:08:30] is the legacy move (12...b5).} 13. Kb1 {[%emt 0:00:27]} Qb6 {[%emt 0:02:57]} 14. Qf3 {[%emt 0:01:56]} Nf6 {[%emt 0:02:59] [#] Hoping for ...Bg4.} 15. f5 {[%emt 0:01:01]} Bd7 {[%emt 0:02:40][%cal Oc8c3] [#]} 16. g4 $146 {[%emt 0:06:11]} (16. Nd2 $14) ({Predecessor:} 16. Nd2 O-O 17. Nc4 Qa7 18. g4 b5 19. g5 bxc4 20. gxf6 Bxf6 21. Nd5 Bd8 22. f6 {0-1 (53) Pruijssers,R (2503)-Gharamian,T (2660) Germany 2016}) 16... h5 $11 {[%emt 0:02:41]} 17. gxh5 {[%emt 0:14:32] [#]} a5 {[%emt 0:08:25]} (17... Rxc3 $142 $1 18. bxc3 Rxh5) 18. Nd5 {[%emt 0:02:21]} Nxd5 {[%emt 0:00:41]} 19. Rxd5 {[%emt 0:00:34]} Qc7 {[%emt 0:09:25]} 20. Na1 {[%emt 0:07:20]} Bc6 {[%emt 0:04:47]} 21. Bb5 {[%emt 0:04:03]} Kf8 {[%emt 0:00:43]} 22. Bxc6 {[%emt 0:00:19]} bxc6 {[%emt 0:00:07]} 23. Rd3 {[%emt 0:00:40]} Rh6 {[%emt 0:03:05]} 24. Nb3 {[%emt 0:05:55][%cal Ba1b3,Bb3d2,Bd2c4,Bc4e3,Be3g4,Bg4e5][%mdl 32]} Bd8 {[%emt 0:06:19]} (24... a4 $11 25. Nd2 d5) 25. Nd2 {[%emt 0:00:58]} Qe7 {[%emt 0:00:58]} (25... Bf6 $16 {was worth a try.}) 26. Qg4 {[%emt 0:05:13][%cal Of5f6] Black must now prevent f6!} Qg5 {[%emt 0:12:04]} 27. Qxg5 {[%emt 0:01:38]} ({White should try} 27. Qe2 $16) 27... Bxg5 $14 {[%emt 0:00:04]} 28. Nc4 {[%emt 0:00:06][%csl LRa5,LRd6]} Be7 {[%emt 0:01:47]} (28... d5 $1 $11 {remains equal.} 29. Nb6 (29. Nxe5 dxe4 30. Rd7 e3 $11) (29. exd5 e4 $11) (29. Nxa5 dxe4 30. Rh3 Bf4 $11) 29... Rd8) 29. Rh3 {[%emt 0:06:16] White is more active.} Bd8 {[%emt 0:00:11]} 30. Ne3 {[%emt 0:01:08]} Bg5 {[%emt 0:00:49]} 31. Ng4 {[%emt 0:01:29]} Rh7 {[%emt 0:00:45]} 32. Rd1 {[%emt 0:11:55]} Rd8 {[%emt 0:01:20]} 33. Rhd3 {[%emt 0:01:43]} ({White should play} 33. h6 $16) 33... Rxh5 $11 {[%emt 0:00:40][%cal Od6d5]} 34. Nxe5 {[%emt 0:06:46] Weighted Error Value: White=0.21 (precise) /Black=0.23 (precise)} 1/2-1/2

[Event "87th Spanish Championship 2022"]
[Site "Linares"]
[Date "2022.08.12"]
[Round "2.13"]
[White "Castellanos Gomez, Alejandro"]
[Black "Gonzalez Perez, Arian"]
[Result "1/2-1/2"]
[ECO "D00"]
[WhiteElo "2266"]
[BlackElo "2418"]
[Annotator "TA"]
[PlyCount "69"]
[EventDate "2022.08.11"]
[EventType "swiss"]
[EventCountry "ESP"]
[SourceTitle "playchess.com"]
[Source "ChessBase"]
[SourceQuality "1"]
[TimeControl "5400+30"]

{[%evp 9,69,0,0,0,0,0,4,0,-1,-7,-8,-10,3,17,40,43,42,45,52,17,24,19,26,50,57,54,51,51,58,0,0,0,0,0,0,0,0,0,0,0,0,0,0,0,0,0,0,0,0,0,0,0,0,0,0,0,0,0,0,12,12,0]} 1. d4 {[%emt 0:00:02]} d5 {[%emt 0:08:23]} 2. Bf4 {[%emt 0:00:13]} Nf6 {[%emt 0:00:13]} 3. e3 {[%emt 0:00:20]} c5 {[%emt 0:00:09]} 4. c3 {[%emt 0:00:17]} Nc6 {[%emt 0:00:11]} 5. Nd2 {[%emt 0:00:21]} Bf5 {[%emt 0:00:40]} 6. Qb3 {[%emt 0:00:41] D00: 1 d4 d5: Unusual lines.} Qc8 {[%emt 0:00:22]} 7. c4 {[%emt 0:02:33]} e6 {[%emt 0:04:17]} 8. cxd5 {[%emt 0:00:21] [#]} exd5 $146 {[%emt 0:04:22] next ...Nh5 is good for Black.} ({Predecessor:} 8... Nxd5 9. Bg3 Nf6 10. dxc5 Nd7 11. e4 Nxc5 12. Qe3 Nxe4 13. Nxe4 Bxe4 14. Qxe4 Bb4+ 15. Ke2 f5 {½-½ (15) Gleichmann,M (2550)-Vinchev,S (2465) GER email 2015}) 9. dxc5 $1 {[%emt 0:00:22]} Bxc5 {[%emt 0:01:23]} 10. Rc1 {[%emt 0:00:10]} Bb6 {[%emt 0:07:28]} 11. Qa3 {[%emt 0:07:03]} Qe6 {[%emt 0:13:23]} 12. Ngf3 {[%emt 0:04:58][%cal Bg1f3,Bf3e5,Be5c6][%mdl 32]} Rd8 {[%emt 0:08:00]} 13. Bb5 {[%emt 0:05:49]} Qe7 $1 {[%emt 0:08:53]} 14. Bxc6+ {[%emt 0:05:34]} bxc6 {[%emt 0:00:13]} 15. Qxe7+ {[%emt 0:00:18]} Kxe7 {[%emt 0:00:04]} 16. Ne5 {[%emt 0:01:51]} Rc8 {[%emt 0:00:29]} 17. Nxc6+ {[%emt 0:00:41]} Kd7 {[%emt 0:00:59]} 18. Ne5+ {[%emt 0:10:18] Pair of Knights!} Ke6 {[%emt 0:00:08]} 19. O-O {[%emt 0:02:24]} (19. Ke2 $1 $14) 19... g5 $1 $11 {[%emt 0:16:32] The position is equal.} 20. Bg3 {[%emt 0:01:26]} Nh5 {[%emt 0:00:13]} 21. Nc6 {[%emt 0:02:12] Black must now prevent Be5.} Nxg3 {[%emt 0:02:33]} 22. hxg3 {[%emt 0:00:07]} Kd6 $1 {[%emt 0:02:45]} 23. Nd4 {[%emt 0:01:44]} Bxd4 {[%emt 0:00:27]} 24. exd4 {[%emt 0:00:16]} Rhe8 {[%emt 0:00:57]} 25. Rxc8 {[%emt 0:06:53]} Rxc8 {[%emt 0:00:29][%mdl 4096] Endgame KRB-KRN} 26. f4 {[%emt 0:00:43]} g4 {[%emt 0:05:58]} 27. Nb3 {[%emt 0:00:57]} Rc2 {[%emt 0:00:44]} 28. Rf2 {[%emt 0:00:30]} Rc4 {[%emt 0:00:06]} 29. Rd2 {[%emt 0:00:31]} Be4 {[%emt 0:01:15]} 30. Kf2 {[%emt 0:00:29]} f5 {[%emt 0:03:16]} 31. Ke3 {[%emt 0:00:16]} h5 {[%emt 0:00:22]} 32. Re2 {[%emt 0:08:47]} Ke7 {[%emt 0:06:15]} 33. Rd2 {[%emt 0:01:24]} Kd6 {[%emt 0:00:31]} 34. Rf2 {[%emt 0:00:21]} Ke7 {[%emt 0:00:18]} 35. Rd2 {[%emt 0:07:27] Weighted Error Value: White=0.03 (flawless) /Black=0.02 (flawless)} 1/2-1/2

[Event "87th Spanish Championship 2022"]
[Site "Linares"]
[Date "2022.08.12"]
[Round "2.14"]
[White "Lopez Varela, Pablo"]
[Black "Espinosa Aranda, Angel"]
[Result "1/2-1/2"]
[ECO "B40"]
[WhiteElo "2158"]
[BlackElo "2439"]
[Annotator "TA"]
[PlyCount "78"]
[EventDate "2022.08.11"]
[EventType "swiss"]
[EventCountry "ESP"]
[SourceTitle "playchess.com"]
[Source "ChessBase"]
[SourceQuality "1"]
[TimeControl "5400+30"]

{[%evp 13,78,-18,-24,-37,-40,-32,-37,-21,-37,-62,-76,-77,0,0,0,0,0,0,0,0,0,0,0,0,0,0,0,0,0,0,0,0,0,-1,0,0,0,-6,-7,-4,-1,-1,-1,-11,0,-4,0,0,0,0,0,-2,0,-11,-11,-12,0,0,0,0,0,0,0,0,0,0,0]} 1. e4 {[%emt 0:00:03]} c5 {[%emt 0:00:15]} 2. Nf3 {[%emt 0:00:05]} e6 {[%emt 0:00:30]} 3. d4 {[%emt 0:00:07]} cxd4 {[%emt 0:00:07]} 4. c3 {[%emt 0:00:02]} dxc3 {[%emt 0:01:48]} 5. Nxc3 {[%emt 0:00:06]} Nc6 {[%emt 0:00:32]} 6. Bc4 {[%emt 0:00:04]} Bb4 {[%emt 0:01:33]} 7. O-O {[%emt 0:00:07]} Nge7 $1 {[%emt 0:00:15] 7...Nge7 scores better than 7...Bxc3.} 8. Qc2 {[%emt 0:03:44] B21: Sicilian: 2 f4 and Morra Gambit.} O-O {[%emt 0:03:06]} ({Much weaker is} 8... d5 9. Rd1 Bxc3 10. bxc3 $11) 9. Rd1 {[%emt 0:01:39]} Ng6 {[%emt 0:06:16]} 10. Bg5 {[%emt 0:04:10] Black is slightly better.} Qa5 {[%emt 0:06:22] [#]} 11. a3 $146 {[%emt 0:15:35]} ({Predecessor:} 11. Nb5 a6 12. a3 axb5 13. axb4 Qxa1 14. Rxa1 Rxa1+ 15. Bf1 d5 16. b3 dxe4 17. Qxe4 {0-1 (48) Moura,E (2134)-Hoffman,A (2454) Florianopolis 2019}) 11... Bxc3 {[%emt 0:09:14]} 12. b4 {[%emt 0:00:18]} Qc7 {[%emt 0:08:34]} 13. Qxc3 $11 {[%emt 0:01:05] The position is equal.} Nce5 {[%emt 0:00:07]} 14. Nxe5 {[%emt 0:01:15]} Nxe5 {[%emt 0:00:06]} 15. Rac1 {[%emt 0:02:31][%cal Ba1c1,Bc1c4,Bc4c7][%mdl 32]} Nxc4 {[%emt 0:03:51]} 16. Qxc4 {[%emt 0:00:13]} Qxc4 {[%emt 0:05:42]} 17. Rxc4 {[%emt 0:00:34]} d5 {[%emt 0:00:24]} 18. exd5 {[%emt 0:01:08]} exd5 {[%emt 0:00:05]} 19. Rc7 {[%emt 0:01:18]} ({Avoid the trap} 19. Rxd5 $2 Be6 20. Rcd4 Bxd5 21. Rxd5 f6 $19) 19... b6 {[%emt 0:06:52]} 20. Rxd5 {[%emt 0:01:32]} Be6 {[%emt 0:00:17]} 21. Rd6 {[%emt 0:02:57]} h6 {[%emt 0:03:51]} 22. Be3 {[%emt 0:08:43]} Rfc8 {[%emt 0:02:40]} 23. Rcc6 {[%emt 0:03:30]} Rxc6 {[%emt 0:03:11]} 24. Rxc6 {[%emt 0:00:10][%mdl 4096] Endgame KRB-KRB} Rd8 {[%emt 0:00:07][%cal Rd8d1] [#]} 25. Rc1 {[%emt 0:08:06] Inhibits Rd1+.} Rd3 {[%emt 0:00:09]} 26. Ra1 $1 {[%emt 0:01:24]} Rb3 {[%emt 0:03:30]} 27. h4 {[%emt 0:06:35]} Kh7 {[%emt 0:00:15]} 28. Bd2 {[%emt 0:03:50]} Rb2 {[%emt 0:03:27]} 29. Bc3 {[%emt 0:01:25]} Rc2 {[%emt 0:00:17]} 30. Bd4 {[%emt 0:00:57]} Rd2 {[%emt 0:04:06]} 31. Be3 {[%emt 0:00:43]} Rb2 {[%emt 0:00:08]} 32. Bc1 {[%emt 0:02:50]} Rb3 {[%emt 0:01:56]} 33. Bd2 {[%emt 0:00:08]} Kg6 {[%emt 0:01:45]} 34. f3 {[%emt 0:04:21]} Rb2 {[%emt 0:10:35]} 35. Bc3 {[%emt 0:01:29]} Rc2 {[%emt 0:00:15]} 36. Be1 {[%emt 0:00:15]} b5 {[%emt 0:01:20]} 37. a4 {[%emt 0:01:18]} bxa4 {[%emt 0:01:05]} 38. Rxa4 {[%emt 0:00:07]} Ra2 {[%emt 0:00:07]} 39. Rxa2 {[%emt 0:00:21]} Bxa2 {[%emt 0:00:08] Weighted Error Value: White=0.02 (flawless) /Black=0.03 (flawless)} 1/2-1/2

[Event "87th Spanish Championship 2022"]
[Site "Linares"]
[Date "2022.08.12"]
[Round "2.15"]
[White "Merario Alarcon, Andres"]
[Black "Carbonell Sancho, Marc"]
[Result "1-0"]
[ECO "D85"]
[WhiteElo "2418"]
[BlackElo "2284"]
[Annotator "TA"]
[PlyCount "93"]
[EventDate "2022.08.11"]
[EventType "swiss"]
[EventCountry "ESP"]
[SourceTitle "playchess.com"]
[Source "ChessBase"]
[SourceQuality "1"]
[TimeControl "5400+30"]

{[%evp 15,93,15,11,-28,-20,-51,8,21,21,9,16,-24,45,17,42,22,56,41,85,93,100,83,106,45,45,46,61,46,82,37,35,49,54,56,66,35,45,0,0,0,0,0,0,0,0,0,0,0,0,0,860,598,591,594,579,579,562,539,458,447,1611,689,673,589,29986,29987,29987,29988,29988,29989,29989,29990,29990,29991,29991,29991,29992,29988,29988,29989]} 1. d4 {[%emt 0:00:03]} Nf6 {[%emt 0:07:41]} 2. c4 {[%emt 0:00:08]} g6 {[%emt 0:00:05]} 3. Nc3 {[%emt 0:00:22]} d5 {[%emt 0:00:04]} 4. cxd5 {[%emt 0:00:19]} Nxd5 {[%emt 0:00:04]} 5. e4 {[%emt 0:00:18]} Nxc3 {[%emt 0:00:05]} 6. bxc3 {[%emt 0:00:04]} Bg7 {[%emt 0:00:05]} 7. Nf3 $1 {[%emt 0:00:44][%mdl 4] is currently scoring better than 7.Bc4.} c5 {[%emt 0:00:06]} 8. Rb1 {[%emt 0:00:13]} O-O {[%emt 0:00:49]} 9. h3 {[%emt 0:00:16] D85: Exchange Grünfeld: Unusual White 7th moves and lines with 7 Nf3.} Nc6 {[%emt 0:06:44][%cal Rc5d4]} 10. d5 {[%emt 0:00:11]} Ne5 {[%emt 0:00:02]} ({Black should try} 10... Bxc3+ $15 11. Bd2 Bxd2+ 12. Qxd2 Na5) 11. Nxe5 $11 {[%emt 0:00:20] The position is equal.} Bxe5 {[%emt 0:00:03]} 12. Qc2 {[%emt 0:00:11]} f5 {[%emt 0:08:57] [#]} 13. Bh6 $146 {[%emt 0:00:21]} ({Predecessor:} 13. Bd3 f4 14. Be2 b6 15. c4 e6 16. Bb2 Bxb2 17. Qxb2 Qg5 18. Kf1 e5 19. Rd1 {½-½ (38) Borrmann,L (2232)-Finek,V (2419) Vienna 2022}) 13... Bg7 {[%emt 0:21:42]} (13... Rf7 $11) 14. Bxg7 $14 {[%emt 0:00:21]} Kxg7 {[%emt 0:00:04]} 15. Bd3 {[%emt 0:08:19]} Qc7 {[%emt 0:05:37]} 16. c4 {[%emt 0:04:02]} Qa5+ {[%emt 0:05:28]} 17. Kf1 {[%emt 0:04:35]} fxe4 {[%emt 0:00:03]} 18. Bxe4 {[%emt 0:01:39]} Qc7 {[%emt 0:00:57]} 19. Qc3+ {[%emt 0:03:53]} ({Better is} 19. h4 $16) 19... Kg8 {[%emt 0:02:55]} 20. g3 {[%emt 0:01:04]} Bf5 {[%emt 0:00:20]} 21. Re1 {[%emt 0:01:48]} Rae8 {[%emt 0:05:40]} 22. Bxf5 {[%emt 0:04:41] White is more active.} Rxf5 {[%emt 0:00:07]} 23. Kg2 {[%emt 0:00:16]} Ref8 {[%emt 0:04:46]} 24. Rhf1 {[%emt 0:02:48]} R8f7 {[%emt 0:04:45][%cal Ob7b5]} 25. a4 {[%emt 0:07:09]} Qd7 {[%emt 0:02:45]} 26. Qa5 {[%emt 0:05:29][%csl LRa7,LRc5]} Rh5 $1 {[%emt 0:09:28]} 27. g4 {[%emt 0:22:03]} Rxh3 {[%emt 0:01:31]} 28. Kxh3 {[%emt 0:02:00]} Rf3+ {[%emt 0:01:58]} 29. Kh2 {[%emt 0:07:51]} ({But not} 29. Kh4 $2 Qd6 $19) 29... Qxg4 {[%emt 0:00:12][%csl Gg4][%cal Rf3h3] [#]} 30. Qd8+ {[%emt 0:00:03]} Rf8 {[%emt 0:06:17]} 31. Qc7 {[%emt 0:00:31] And now f3 would win.} Rf3 $1 {[%emt 0:01:57][%csl Gg4][%cal Rf3h3]} 32. Qb8+ {[%emt 0:08:04]} Kg7 $2 {[%emt 0:02:55][%mdl 8192] Black is on the road to losing.} (32... Kf7 $11 33. Re3 Qh5+ 34. Kg2 Qg4+ 35. Kh2 Qh5+ 36. Kg2 Qg4+ 37. Kh2) 33. Qe5+ {[%emt 0:06:03]} ({And not} 33. Re3 Qh3+ 34. Kg1 Qg4+ 35. Kh2 Qh3+ 36. Kg1 Qg4+ 37. Kh2 $11) 33... Kh6 {[%emt 0:00:31][%csl Gg4][%cal Rf3h3]} 34. Re3 {[%emt 0:00:38]} Qh3+ {[%emt 0:00:47]} 35. Kg1 {[%emt 0:00:03]} Qg4+ {[%emt 0:00:07]} 36. Kh1 {[%emt 0:00:39]} Rf5 {[%emt 0:01:15]} 37. Qg3 {[%emt 0:02:16]} Rh5+ {[%emt 0:00:28]} (37... Qxc4 $142 38. Rd1 Rg5) 38. Kg1 {[%emt 0:00:31]} Qxc4 {[%emt 0:00:13] Strongly threatening ...Rg5.} 39. Re5 {[%emt 0:01:47] Inhibits Rg5.} Rh4 {[%emt 0:00:03] White must now prevent ...Rg4.} 40. Qg5+ {[%emt 0:00:39] White mates.} Kg7 {[%emt 0:00:20]} 41. Qxe7+ {[%emt 0:01:03]} Kg8 {[%emt 0:00:17]} 42. Qd8+ {[%emt 0:01:56]} Kg7 {[%emt 0:00:07] [#]} 43. Re7+ $1 {[%emt 0:00:46]} Kh6 {[%emt 0:00:04]} 44. Qf8+ {[%emt 0:00:17]} Kg5 {[%emt 0:00:10]} 45. Re5+ {[%emt 0:00:38]} Kg4 {[%emt 0:00:02]} 46. f3+ {[%emt 0:01:54]} Kh3 {[%emt 0:01:25]} 47. Qc8+ {[%emt 0:00:09] Weighted Error Value: White=0.39/Black=0.14 (very precise)} 1-0

[Event "87th Spanish Championship 2022"]
[Site "Linares"]
[Date "2022.08.12"]
[Round "2.17"]
[White "Moreno Tejera, Emilio"]
[Black "Gonzalez Guedes, Iyan"]
[Result "0-1"]
[ECO "B92"]
[WhiteElo "2420"]
[BlackElo "2250"]
[Annotator "TA"]
[PlyCount "100"]
[EventDate "2022.08.11"]
[EventType "swiss"]
[EventCountry "ESP"]
[SourceTitle "playchess.com"]
[Source "ChessBase"]
[SourceQuality "1"]
[TimeControl "5400+30"]

{[%evp 23,100,8,20,3,3,0,65,32,29,39,40,37,31,10,62,48,46,28,45,37,39,30,77,92,87,87,88,84,106,116,133,117,157,152,152,126,175,171,175,130,156,123,190,97,161,115,170,166,175,82,102,0,0,0,22,31,15,-21,-16,-912,-881,-822,-637,-901,-814,-729,-609,-808,-779,-1041,-1048,-2156,-1939,-1959,-1850,-1456,-1407,-29984,-12096]} 1. e4 {[%emt 0:00:05]} c5 {[%emt 0:00:05]} 2. Nf3 {[%emt 0:00:09]} d6 {[%emt 0:00:05]} 3. d4 {[%emt 0:00:12]} cxd4 {[%emt 0:00:02]} 4. Nxd4 {[%emt 0:00:08]} Nf6 {[%emt 0:00:15]} 5. Nc3 {[%emt 0:00:05]} a6 {[%emt 0:00:07]} 6. Be2 {[%emt 0:00:20]} e5 {[%emt 0:00:30]} 7. Nb3 {[%emt 0:00:19]} Be7 {[%emt 0:00:19]} 8. O-O {[%emt 0:00:08]} O-O {[%emt 0:00:07]} 9. Kh1 {[%emt 0:00:11]} Be6 {[%emt 0:04:05]} 10. f4 {[%emt 0:00:27]} exf4 {[%emt 0:00:45]} 11. Bxf4 {[%emt 0:00:08]} Nc6 {[%emt 0:00:17]} 12. Qe1 {[%emt 0:00:47]} Ne5 {[%emt 0:03:10]} 13. Rd1 {[%emt 0:01:05] B92: Sicilian Najdorf: 6 Be2.} Nfd7 {[%emt 0:04:07]} 14. Nd4 {[%emt 0:07:11]} Qc7 {[%emt 0:06:23]} (14... Rc8 $11) 15. Qg3 {[%emt 0:01:33] White is slightly better.} (15. Nf5 $5 {[%cal Rf5e7]} Rfe8 16. Nxe7+ Rxe7 17. Qd2 $14) 15... Kh8 {[%emt 0:08:02] [#]} 16. Nf5 $146 {[%emt 0:21:50]} ({Predecessor:} 16. Nd5 Bxd5 17. exd5 Rg8 18. b3 Ng6 19. Bc1 Bh4 20. Qh3 Nde5 21. c4 Rae8 22. Nf5 {1-0 (47) Belova,O (2009)-Rakhmatullin,I Kazan 2011}) 16... Bxf5 {[%emt 0:01:14]} 17. exf5 {[%emt 0:00:33]} Nf6 {[%emt 0:04:35]} 18. Bg5 {[%emt 0:16:39]} Ned7 {[%emt 0:06:08]} (18... Rac8 $11) 19. Bf3 $40 {[%emt 0:18:31][%mdl 128] White is up to no good.} Rad8 {[%emt 0:04:43]} 20. Rfe1 {[%emt 0:08:01]} Rfe8 {[%emt 0:03:40]} 21. Be3 {[%emt 0:08:05]} Bf8 {[%emt 0:15:31]} 22. Bd4 {[%emt 0:01:11]} Ne5 {[%emt 0:01:39]} (22... Rxe1+ $11 {was preferrable.} 23. Rxe1 Ne5) 23. Nd5 $16 {[%emt 0:02:44]} Nxd5 {[%emt 0:03:22]} 24. Bxd5 {[%emt 0:00:06]} Qxc2 {[%emt 0:07:40]} 25. Bxb7 {[%emt 0:00:41]} Qxf5 {[%emt 0:04:56]} 26. Bxa6 {[%emt 0:00:43]} Ra8 {[%emt 0:01:04]} 27. Bb5 {[%emt 0:00:18] This bishop pair is nice.} Re6 {[%emt 0:02:40]} 28. a4 {[%emt 0:01:27]} Rg6 {[%emt 0:02:03]} 29. Qh4 {[%emt 0:03:12]} ({Inferior is} 29. Bxe5 Rxg3 30. Bxg3 Qc5 $11) 29... Rg4 {[%emt 0:04:28]} (29... Nf3 $16 30. Qe4 Qxe4 31. Rxe4 d5) 30. Qh3 $18 {[%emt 0:00:38] [#] And now Bxe5 would win.} Qg5 {[%emt 0:00:58]} 31. Bf2 {[%emt 0:02:58]} f5 {[%emt 0:04:04]} 32. b3 {[%emt 0:00:42]} Rc8 {[%emt 0:01:40]} (32... Be7 $16 33. Qe3 Rb4) 33. Be2 {[%emt 0:01:19]} ({Better is} 33. a5 $18) 33... Rb4 {[%emt 0:00:49]} (33... Re4 $16 {keeps fighting.}) 34. Be3 {[%emt 0:01:11]} ({White should play} 34. a5 $18) 34... Qg6 {[%emt 0:01:16]} (34... Qf6 $16) 35. Bd2 {[%emt 0:00:39]} Rd4 {[%emt 0:02:02]} 36. Qe3 {[%emt 0:01:12]} (36. Rf1 $18 {has better winning chances.}) 36... Re4 $16 {[%emt 0:00:33]} 37. Qg5 {[%emt 0:00:32]} (37. Qg3 $16) 37... Qe6 $11 {[%emt 0:00:53] [#] Strongly threatening ...Be7.} 38. Ba6 {[%emt 0:01:35]} Ra8 {[%emt 0:01:21] ...h6 is the strong threat.} 39. Rxe4 {[%emt 0:01:20]} fxe4 {[%emt 0:00:08]} 40. Rf1 {[%emt 0:00:52]} Be7 {[%emt 0:02:07]} 41. Bb7 $2 {[%emt 0:00:41][%mdl 8192]} (41. Qh5 $11) 41... Bxg5 $19 {[%emt 0:00:35]} 42. Bxa8 {[%emt 0:00:04]} Bf6 {[%emt 0:00:46]} 43. a5 {[%emt 0:00:41]} Qxb3 {[%emt 0:01:19]} 44. Bxe4 {[%emt 0:00:46]} Nc4 {[%emt 0:00:47]} 45. a6 {[%emt 0:00:29] Black must now prevent a7.} Qa4 {[%emt 0:00:32]} 46. Rb1 {[%emt 0:00:27]} g5 {[%emt 0:00:35]} 47. Rb8+ {[%emt 0:00:16]} Kg7 {[%emt 0:00:01]} 48. Rb7+ {[%emt 0:00:14]} Kf8 {[%emt 0:00:07]} 49. Rb8+ {[%emt 0:00:52]} Ke7 {[%emt 0:00:16] ( -> ...Qd1+)} 50. Rb7+ {[%emt 0:00:12]} Ke6 {Quite a comeback for Black.  Weighted Error Value: White=0.72/Black=0.28 (precise)} 0-1